bitfinex-derivatives/quotes_SOLF0:USTF0_20240912
["timestamp","ask_amount","ask_price","bid_price","bid_amount"]
[1726163815010,2.6967,135.34,135.27,3.3267]
[1726163815214,11.35,135.29,135.25,11.35]
[1726163815411,2.6967,135.34,135.24,166.92007151]
[1726163815609,3.3269,135.27,135.25,3.3272]
[1726163815820,3.3269,135.27,135.24,178.27007151]
[1726163816318,3.3271,135.26,135.24,3.3274]
[1726163816720,3.3271,135.26,135.23,3.3277]
[1726163817211,6.6518,135.31,135.19,6.46715212]
[1726163817416,11.35,135.23,135.18,3.64305257]
[1726163817612,3.3282,135.22,135.17,11.35]
[1726163817817,3.3282,135.22,135.17,15.04925312]
[1726163818014,11.35,135.23,135.19,11.35]
[1726163818212,3.3278,135.23,135.19,11.35]
[1726163818414,14.6778,135.23,135.19,14.6787]
[1726163818619,14.6778,135.23,135.19,3.3287]
[1726163819116,3.3278,135.23,135.2,3.3285]
[1726163819325,3.3278,135.23,135.2,14.6785]
[1726163820023,14.6776,135.24,135.2,14.6785]
[1726163820209,14.6776,135.24,135.2,3.3285]
[1726163820210,3.3276,135.24,135.2,3.3285]
[1726163820411,3.3278,135.23,135.2,3.3285]
[1726163820919,2.794,135.25,135.18,17.75]
[1726163821718,17.75,135.22,135.15,1.4205]
[1726163821913,17.75,135.22,135.14,1.4066]
[1726163822314,17.75,135.24,135.15,21.44110141]
[1726163822520,17.75,135.24,135.15,21.53948147]
[1726163823114,17.75,135.24,135.17,3.3292]
[1726163823512,3.3287,135.2,135.16,3.3294]
[1726163823720,17.75,135.21,135.13,17.75]
[1726163823916,17.75,135.23,135.14,17.75]
[1726163824322,3.3287,135.2,135.16,3.3293]
[1726163825416,17.75,135.21,135.13,21.44219385]
[1726163825717,17.75,135.2,135.13,21.44219385]
[1726163826530,17.75,135.2,135.15,3.3296]
[1726163827025,3.329,135.18,135.15,3.3296]
[1726163827213,17.75,135.2,135.13,17.75]
[1726163827414,283.794,135.25,135.13,17.75]
[1726163827626,17.75,135.22,135.13,17.75]
[1726163827829,1.3592,135.21,135.13,17.75]
[1726163828235,3.329,135.19,135.13,17.75]
[1726163828416,1.3592,135.21,135.13,17.75]
[1726163828618,1.3592,135.21,135.14,17.75]
[1726163828619,3.3288,135.19,135.14,17.75]
[1726163829026,1.3592,135.21,135.14,17.75]
[1726163829228,3.3286,135.2,135.14,17.75]
[1726163829527,17.75,135.24,135.16,17.75]
[1726163829721,3.3283,135.21,135.16,17.75]
[1726163829922,17.75,135.24,135.17,3.3292]
[1726163830122,17.75,135.24,135.16,17.75]
[1726163830322,283.794,135.25,135.16,17.75]
[1726163830529,283.794,135.25,135.19,3.3286]
[1726163831122,3.3281,135.22,135.18,3.329]
[1726163831430,283.794,135.25,135.13,17.75]
[1726163831633,17.75,135.22,135.13,17.75]
[1726163831931,17.75,135.22,135.13,21.45856762]
[1726163832129,17.75,135.22,135.15,3.3296]
[1726163832331,17.75,135.22,135.13,21.45856762]
[1726163833138,3.3287,135.2,135.16,3.3294]
[1726163834132,3.3287,135.2,135.13,21.45856762]
[1726163834539,3.3287,135.2,135.16,3.3293]
[1726163835042,3.3287,135.2,135.13,21.45856762]
[1726163835335,3.3287,135.2,135.17,3.3291]
[1726163835540,4.7019,135.21,135.15,17.75]
[1726163835742,1.3735,135.21,135.17,17.75]
[1726163836035,3.3279,135.23,135.17,17.75]
[1726163836236,283.794,135.25,135.17,17.75]
[1726163836437,3.3281,135.22,135.19,3.3285]
[1726163836939,283.794,135.25,135.2,3.3285]
[1726163836940,3.3278,135.23,135.2,3.3285]
[1726163843341,281.0,135.22,135.21,3.328]
[1726163846534,6.1214,135.25,135.22,3.3279]
[1726163848940,1.383,135.25,135.21,17.75]
[1726163850238,1.383,135.25,135.23,3.3276]
[1726163851047,1.383,135.25,135.24,3.3275]
[1726163851249,282.383,135.25,135.24,3.3275]
[1726163851437,281.0,135.25,135.24,3.3275]
[1726163852954,284.3274,135.25,135.21,17.75]
[1726163853141,284.3274,135.25,135.2,3.70774465]
[1726163853142,281.0,135.25,135.2,3.70774465]
[1726163853340,284.3274,135.25,135.22,3.328]
[1726163854745,284.3274,135.25,135.23,3.3277]
[1726163854746,281.0,135.25,135.23,3.3277]
[1726163855644,1.3872,135.27,135.24,3.3275]
[1726163856039,4.7142,135.27,135.24,3.3275]
[1726163859549,1.3872,135.27,135.21,17.75]
[1726163860252,1.3872,135.27,135.2,3.71237334]
[1726163860458,11.36,135.25,135.2,11.36]
[1726163860639,14.6873,135.25,135.2,15.03307437]
[1726163860941,11.36,135.25,135.2,15.03307437]
[1726163861347,11.36,135.25,135.23,3.3277]
[1726163861546,281.0,135.25,135.23,3.3277]
[1726163862154,281.0,135.25,135.24,3.3275]
[1726163862743,281.0,135.25,135.23,3.3277]
[1726163862950,284.3274,135.25,135.21,11.36]
[1726163863148,284.3274,135.25,135.22,3.328]
[1726163863346,284.3274,135.25,135.21,11.36]
[1726163863750,281.0,135.25,135.23,14.6875]
[1726163863949,281.0,135.25,135.23,11.36]
[1726163864146,281.0,135.25,135.21,11.36]
[1726163864347,281.0,135.25,135.16,1.407]
[1726163864551,292.36,135.25,135.21,11.36]
[1726163865148,295.6874,135.25,135.22,3.3278]
[1726163866255,295.6874,135.25,135.23,3.3277]
[1726163866440,281.0,135.25,135.22,11.36]
[1726163867146,281.0,135.25,135.24,3.3275]
[1726163867853,284.3274,135.25,135.23,3.3277]
[1726163868658,281.0,135.25,135.23,3.3277]
[1726163870151,284.3274,135.25,135.22,3.3279]
[1726163870353,284.3274,135.25,135.21,11.36]
[1726163870354,281.0,135.25,135.21,11.36]
[1726163870559,11.36,135.26,135.21,11.36]
[1726163870958,14.6872,135.26,135.23,3.3277]
[1726163871257,14.6872,135.26,135.23,11.36]
[1726163871569,3.3272,135.26,135.23,11.36]
[1726163872345,3.3272,135.26,135.24,3.3274]
[1726163872574,11.36,135.27,135.24,3.3274]
[1726163872575,14.6869,135.27,135.24,3.3274]
[1726163873255,14.6869,135.27,135.25,3.3273]
[1726163874247,3.3269,135.27,135.25,3.3273]
[1726163874446,4.6306,135.28,135.24,11.36]
[1726163875250,1.3039,135.28,135.26,11.36]
[1726163876459,282.3039,135.28,135.26,14.6868]
[1726163877068,281.0,135.28,135.26,14.6868]
[1726163877269,281.0,135.28,135.27,3.3268]
[1726163877768,1.3195,135.29,135.27,3.3268]
[1726163878663,4.6458,135.29,135.27,3.3268]
[1726163879860,4.6458,135.29,135.26,3.3269]
[1726163880667,4.6458,135.29,135.27,3.3267]
[1726163880967,1.3195,135.29,135.27,3.3267]
[1726163881764,1.3195,135.29,135.26,11.36]
[1726163881967,4.7427,135.3,135.26,11.36]
[1726163882170,4.7427,135.3,135.27,3.3266]
[1726163882570,3.3263,135.29,135.27,3.3266]
[1726163883064,285.7426,135.3,135.28,3.3266]
[1726163883266,281.0,135.3,135.27,11.36]
[1726163883664,284.3261,135.3,135.28,3.3264]
[1726163884065,281.0,135.3,135.27,11.36]
[1726163884270,281.0,135.3,135.28,3.3264]
[1726163885077,284.3261,135.3,135.28,3.3264]
[1726163885569,281.0,135.3,135.26,3.3269]
[1726163885964,3.3264,135.29,135.25,11.36]
[1726163886367,3.3264,135.29,135.25,15.09012939]
[1726163886856,3.3264,135.29,135.27,3.3268]
[1726163887470,284.3262,135.3,135.27,14.6868]
[1726163887656,284.3262,135.3,135.28,3.3265]
[1726163888360,284.3262,135.3,135.27,14.6867]
[1726163889063,3.3263,135.29,135.27,14.6867]
[1726163889375,11.36,135.29,135.25,3.3272]
[1726163889766,11.36,135.29,135.24,3.3274]
[1726163889767,11.36,135.27,135.24,3.3274]
[1726163890269,14.6869,135.27,135.24,3.3274]
[1726163891166,4.701,135.28,135.25,3.3272]
[1726163891762,3.3268,135.27,135.25,3.3272]
[1726163892974,3.3268,135.27,135.24,14.6874]
[1726163893475,3.3268,135.27,135.24,3.3274]
[1726163893667,1.3743,135.28,135.2,166.98248015]
[1726163893861,11.36,135.26,135.21,11.36]
[1726163894075,14.6873,135.26,135.22,3.3279]
[1726163894577,11.36,135.26,135.22,3.3279]
[1726163895775,3.3273,135.25,135.22,3.3279]
[1726163896173,282.3743,135.28,135.24,11.36]
[1726163896379,282.3743,135.28,135.26,11.36]
[1726163897077,282.3743,135.28,135.26,14.6869]
[1726163897280,282.3743,135.28,135.26,11.36]
[1726163898180,281.0,135.28,135.26,14.687]
[1726163898976,284.3266,135.28,135.26,11.36]
[1726163899572,281.0,135.28,135.26,11.36]
[1726163899975,281.0,135.28,135.27,14.6868]
[1726163900476,3.326,135.31,135.28,3.3265]
[1726163900785,3.326,135.31,135.28,14.6865]
[1726163903469,11.36,135.33,135.29,3.3263]
[1726163903470,3.3257,135.32,135.29,3.3263]
[1726163903675,3.3257,135.32,135.29,14.6863]
[1726163904877,3.3257,135.32,135.3,11.36]
[1726163905589,14.0082,135.35,135.3,11.36]
[1726163905885,295.0082,135.35,135.3,11.36]
[1726163906770,295.0082,135.35,135.3,14.6859]
[1726163906771,3.3252,135.34,135.3,14.6859]
[1726163907272,295.0082,135.35,135.3,14.6859]
[1726163907886,3.3255,135.33,135.3,14.6859]
[1726163908992,3.3258,135.31,135.28,3.3264]
[1726163909289,3.3258,135.31,135.28,14.6864]
[1726163909478,281.0,135.3,135.28,14.6864]
[1726163909678,281.0,135.3,135.28,18.30804559]
[1726163910377,281.0,135.3,135.29,3.3263]
[1726163910576,281.0,135.3,135.29,14.6863]
[1726163913983,281.0,135.3,135.29,11.36]
[1726163914185,281.0,135.3,135.28,6.94814559]
[1726163914377,281.0,135.3,135.29,11.36]
[1726163915379,3.3259,135.31,135.29,11.36]
[1726163916982,3.3259,135.31,135.3,11.36]
[1726163921491,284.3259,135.31,135.3,11.36]
[1726163922294,284.3259,135.31,135.29,11.36]
[1726163923383,284.3259,135.31,135.29,14.6863]
[1726163923586,284.3259,135.31,135.3,11.36]
[1726163927396,3.3259,135.31,135.3,11.36]
[1726163928604,3.3253,135.32,135.3,11.36]
[1726163929394,3.3251,135.33,135.3,11.36]
[1726163929783,3.3251,135.33,135.32,11.36]
[1726163932795,281.0,135.33,135.32,14.6852]
[1726163932995,281.0,135.34,135.32,11.36]
[1726163933197,281.0,135.34,135.33,11.36]
[1726163933493,281.0,135.34,135.33,14.685]
[1726163936190,151.35,135.34,135.33,14.685]
[1726163936499,147.9295,135.34,135.33,14.685]
[1726163939007,3.2795,135.34,135.33,14.685]
[1726163939603,3.2795,135.34,135.33,21.13554021]
[1726163939809,3.2795,135.34,135.33,14.685]
[1726163940113,3.2795,135.34,135.33,21.13530856]
[1726163941305,3.2795,135.34,135.33,14.685]
[1726163941898,3.2795,135.34,135.33,21.13557205]
[1726163942107,3.2795,135.34,135.33,14.685]
[1726163944214,3.3237,135.39,135.36,3.3242]
[1726163944399,3.3237,135.39,135.37,11.36]
[1726163946010,3.3237,135.39,135.38,11.36]
[1726163947102,7.3168,135.4,135.38,11.36]
[1726163947410,7.3168,135.4,135.39,11.36]
[1726163947713,7.3168,135.4,135.38,11.36]
[1726163948316,146.0,135.39,135.38,11.36]
[1726163950413,146.0,135.39,135.36,14.6841]
[1726163951410,3.3238,135.38,135.36,14.6841]
[1726163951816,3.3238,135.38,135.36,3.3241]
[1726163952013,3.3238,135.38,135.36,11.36]
[1726163953017,146.0,135.39,135.34,3.3246]
[1726163953018,157.36,135.39,135.34,3.3246]
[1726163953219,157.36,135.39,135.34,14.6846]
[1726163953520,146.0,135.39,135.34,14.6846]
[1726163953719,3.3242,135.37,135.34,14.6846]
[1726163954419,146.0,135.36,135.34,14.6846]
[1726163956914,149.3244,135.36,135.33,3.3249]
[1726163957120,149.3244,135.36,135.34,11.36]
[1726163957322,149.3244,135.36,135.35,11.36]
[1726163958221,3.3248,135.34,135.31,14.6854]
[1726163958523,3.3248,135.34,135.32,11.36]
[1726163958823,3.3248,135.34,135.32,14.6852]
[1726163960314,149.3248,135.34,135.32,14.6852]
[1726163961924,146.0,135.34,135.32,14.6852]
[1726163963118,146.0,135.34,135.33,11.36]
[1726163965823,146.0,135.34,135.33,14.685]
[1726163966429,1.3781,135.35,135.33,14.685]
[1726163966627,1.3781,135.35,135.34,11.36]
[1726163970228,1.3781,135.35,135.34,14.6847]
[1726163970428,2.6852,135.4,135.34,11.36]
[1726163970618,1.3132,135.39,135.36,11.36]
[1726163971319,3.324,135.38,135.36,11.36]
[1726163972431,134.64,135.36,135.35,3.3243]
[1726163972624,134.64,135.36,135.35,14.6843]
[1726163977840,134.64,135.36,135.34,14.6846]
[1726163978222,123.64,135.35,135.34,14.6846]
[1726163984253,3.3239,135.38,135.35,3.3245]
[1726163984437,3.3239,135.38,135.36,11.36]
[1726163985038,11.36,135.37,135.31,4.88528057]
[1726163985247,11.36,135.36,135.31,11.36]
[1726163985454,12.7863,135.35,135.3,11.36]
[1726163985656,136.4202,135.34,135.3,11.36]
[1726163986050,136.4202,135.34,135.3,15.10418089]
[1726163986955,139.7451,135.34,135.3,18.42988089]
[1726163990265,116.57011911,135.3,135.23,1.3515]
[1726163990454,116.57011911,135.3,135.29,11.36]
[1726163990655,116.57011911,135.3,135.29,17.81634807]
[1726163990864,116.57011911,135.3,135.29,21.14234807]
[1726163991564,116.57011911,135.3,135.29,14.686]
[1726163992264,116.57011911,135.3,135.29,11.36]
[1726163992562,116.57011911,135.3,135.29,17.81634255]
[1726163992762,4.745,135.34,135.3,3.3256]
[1726163992957,4.745,135.34,135.33,11.36]
[1726163994557,4.745,135.34,135.32,11.36]
[1726163995168,4.745,135.34,135.31,11.36]
[1726163995169,3.325,135.33,135.31,11.36]
[1726163996072,3.3252,135.32,135.31,11.36]
[1726163996267,44.0,135.31,135.3,15.08939271]
[1726163999068,44.0,135.31,135.3,21.54687597]
[1726163999272,22.45312403,135.3,135.29,3.3259]
[1726163999462,22.45312403,135.3,135.29,14.6859]
[1726163999660,22.45312403,135.3,135.29,19.57892787]
[1726164000067,22.45312403,135.3,135.29,23.35082527]
[1726164001871,22.45312403,135.3,135.29,8.66492527]
[1726164002078,22.45312403,135.3,135.29,8.66374201]
[1726164002269,22.45312403,135.3,135.29,11.98974201]
[1726164002772,22.45312403,135.3,135.29,23.34974201]
[1726164002977,1.4202,135.34,135.31,3.3253]
[1726164003170,1.4202,135.34,135.32,11.36]
[1726164003473,11.36,135.33,135.29,15.1318974]
[1726164003774,1.4202,135.34,135.29,11.36]
[1726164003964,3.3254,135.32,135.29,11.36]
[1726164004157,3.3254,135.32,135.3,3.63146474]
[1726164004364,12.7802,135.34,135.3,3.63146474]
[1726164004663,12.7802,135.34,135.31,11.36]
[1726164004664,1.4202,135.34,135.31,11.36]
[1726164005063,1.4202,135.34,135.32,11.36]
[1726164005265,1.4202,135.34,135.32,14.6851]
[1726164005465,1.4202,135.34,135.32,11.36]
[1726164005674,1.4263,135.35,135.32,14.6851]
[1726164007876,3.3241,135.37,135.33,3.325]
[1726164008068,3.3241,135.37,135.33,14.685]
[1726164008773,14.6843,135.36,135.32,3.3251]
[1726164008971,14.6843,135.36,135.28,1.3429]
[1726164008972,11.36,135.36,135.28,1.3429]
[1726164009172,14.6848,135.34,135.31,3.3254]
[1726164009580,11.36,135.34,135.31,3.3254]
[1726164010491,3.3244,135.36,135.32,3.3251]
[1726164010679,14.6844,135.36,135.32,3.3251]
[1726164011392,3.3246,135.35,135.32,3.3251]
[1726164011584,1.4296,135.39,135.3,3.72699726]
[1726164011769,1.4296,135.39,135.27,11.36]
[1726164011770,11.36,135.32,135.27,11.36]
[1726164011967,11.36,135.32,135.28,11.2099405]
[1726164012167,11.36,135.32,135.29,6.31728602]
[1726164012377,11.36,135.32,135.28,8.21875448]
[1726164012378,2.7196,135.33,135.28,3.3261]
[1726164012576,2.7196,135.33,135.27,14.98342941]
[1726164012577,11.36,135.32,135.29,6.31777297]
[1726164012770,2.7196,135.33,135.27,14.98342941]
[1726164012973,11.36,135.32,135.28,11.21196477]
[1726164013173,11.36,135.31,135.29,6.31878553]
[1726164013482,11.36,135.3,135.27,3.62342941]
[1726164013683,11.36,135.3,135.29,3.326]
[1726164015582,6.0447,135.33,135.29,3.326]
[1726164015876,11.36,135.31,135.29,3.326]
[1726164016085,11.36,135.31,135.3,3.3257]
[1726164016474,2.7196,135.33,135.3,3.3257]
[1726164016669,11.36,135.32,135.3,3.3257]
[1726164018083,2.7196,135.33,135.29,11.36]
[1726164018290,1.4028,135.33,135.3,17.67718562]
[1726164018586,1.4028,135.33,135.31,6.31684567]
[1726164018775,1.4028,135.33,135.31,3.3253]
[1726164019185,12.7628,135.33,135.31,3.3253]
[1726164019790,1.4028,135.33,135.31,3.3253]
[1726164020292,1.4028,135.33,135.32,3.3252]
[1726164022587,2.6963,135.34,135.32,11.36]
[1726164022787,1.3057,135.34,135.32,11.36]
[1726164022986,1.3057,135.34,135.32,3.325]
[1726164023194,1.3057,135.34,135.31,11.36]
[1726164023390,1.3527,135.36,135.33,11.36]
[1726164023883,1.3527,135.36,135.35,3.3245]
[1726164027296,1.4088,135.41,135.34,11.36]
[1726164027596,12.7594,135.4,135.34,11.36]
[1726164027801,16.0828,135.4,135.34,11.36]
[1726164027988,11.36,135.39,135.36,3.3241]
[1726164028395,1.3994,135.4,135.35,3.3244]
[1726164028601,11.36,135.36,135.31,11.36]
[1726164029099,11.36,135.36,135.34,3.3246]
[1726164029888,1.3085,135.42,135.35,11.36]
[1726164030088,14.1866,135.41,135.35,11.36]
[1726164030289,2.8266,135.41,135.34,11.36]
[1726164030494,2.8266,135.41,135.28,6.6524]
[1726164030495,11.36,135.36,135.29,10.09424663]
[1726164030692,11.36,135.36,135.31,11.36]
[1726164030893,11.36,135.36,135.32,6.30961995]
[1726164031090,2.8266,135.41,135.32,6.30961995]
[1726164031091,11.36,135.37,135.35,3.3244]
[1726164032297,11.36,135.37,135.33,11.36]
[1726164033104,11.36,135.37,135.35,3.3243]
[1726164033497,11.36,135.37,135.33,11.36]
[1726164034193,11.36,135.37,135.36,3.3243]
[1726164034798,11.36,135.37,135.35,3.3244]
[1726164035203,3.3238,135.38,135.35,3.3244]
[1726164035396,11.36,135.38,135.36,3.3243]
[1726164037688,11.36,135.38,135.37,3.324]
[1726164038208,11.36,135.38,135.36,3.3241]
[1726164039498,3.3234,135.4,135.37,3.3239]
[1726164039802,14.6834,135.4,135.35,11.36]
[1726164039993,3.3231,135.41,135.37,11.36]
[1726164040193,11.36,135.42,135.38,11.36]
[1726164040390,1.3168,135.43,135.37,11.36]
[1726164040694,11.36,135.38,135.32,6.30954643]
[1726164040901,11.36,135.36,135.32,15.00479915]
[1726164041102,11.36,135.36,135.34,3.3245]
[1726164041298,11.36,135.36,135.32,15.00479915]
[1726164043302,11.36,135.36,135.34,3.3246]
[1726164043492,3.3243,135.36,135.34,3.3246]
[1726164043692,3.3243,135.36,135.31,11.36]
[1726164043891,3.3243,135.36,135.32,6.31003774]
[1726164044103,3.3243,135.36,135.31,11.36]
[1726164044295,3.3243,135.36,135.32,6.31006375]
[1726164044496,3.3243,135.36,135.31,11.36]
[1726164044696,3.3243,135.36,135.32,6.31017888]
[1726164044897,3.3243,135.36,135.33,3.3248]
[1726164045104,11.36,135.37,135.31,11.36]
[1726164045105,14.6841,135.37,135.31,11.36]
[1726164045499,14.6841,135.37,135.32,6.30953814]
[1726164045696,14.6841,135.37,135.31,11.36]
[1726164045894,14.6841,135.37,135.34,3.3246]
[1726164046597,3.3241,135.37,135.34,3.3246]
[1726164046797,14.6841,135.37,135.34,3.3246]
[1726164048106,11.36,135.37,135.32,11.36]
[1726164048605,14.6839,135.38,135.35,3.3244]
[1726164048809,11.36,135.38,135.33,11.36]
[1726164049197,14.6839,135.38,135.35,3.3244]
[1726164049409,3.3239,135.38,135.35,3.3244]
[1726164049602,14.6839,135.38,135.35,3.3244]
[1726164049802,3.324,135.37,135.35,3.3244]
[1726164050003,14.684,135.37,135.35,3.3244]
[1726164050303,11.36,135.37,135.35,3.3244]
[1726164050504,11.36,135.37,135.34,3.3247]
[1726164051611,14.6841,135.37,135.34,3.3247]
[1726164053805,11.36,135.36,135.33,3.3248]
[1726164054012,4.99886136,135.42,135.33,14.6848]
[1726164054207,11.36,135.38,135.33,11.36]
[1726164054814,4.99886136,135.42,135.34,11.36]
[1726164055007,11.36,135.39,135.34,11.36]
[1726164055312,3.3239,135.38,135.35,3.3244]
[1726164056113,3.3236,135.39,135.36,3.3242]
[1726164056300,11.36,135.4,135.36,3.3242]
[1726164057015,3.3236,135.39,135.36,3.3242]
[1726164058606,3.3238,135.38,135.35,14.6844]
[1726164059717,3.3241,135.37,135.34,11.36]
[1726164059923,11.36,135.39,135.34,11.36]
[1726164060114,11.36,135.39,135.35,11.36]
[1726164060313,1.3101,135.42,135.33,11.36]
[1726164060616,11.36,135.38,135.32,11.36]
[1726164060812,3.3244,135.36,135.33,3.3249]
[1726164061013,11.36,135.37,135.32,11.36]
[1726164061319,3.3249,135.34,135.3,11.36]
[1726164062617,3.3251,135.33,135.31,6.31097718]
[1726164062824,11.36,135.33,135.29,11.36]
[1726164063217,2.6661,135.35,135.3,6.31274926]
[1726164063417,11.36,135.33,135.29,3.326]
[1726164063617,11.36,135.33,135.29,14.686]
[1726164064426,14.685,135.33,135.29,14.686]
[1726164065326,3.3253,135.32,135.29,11.36]
[1726164065624,3.77004952,135.34,135.23,1.4046]
[1726164065825,3.3259,135.3,135.26,3.3266]
[1726164066026,1.3231,135.31,135.27,6.31545697]
[1726164066328,3.326,135.29,135.25,14.6869]
[1726164066729,11.36,135.3,135.26,6.31631965]
[1726164066925,1.3231,135.31,135.17,8.7439]
[1726164066926,1.3231,135.31,135.27,6.31631965]
[1726164067114,11.36,135.28,135.22,11.36]
[1726164067320,1.3417,135.29,135.25,11.36]
[1726164067527,1.3417,135.29,135.26,6.32712493]
[1726164067818,1.3417,135.29,135.25,11.36]
[1726164068025,1.3417,135.29,135.26,6.32566113]
[1726164068229,1.3417,135.29,135.25,11.36]
[1726164068627,4.6677,135.29,135.25,11.36]
[1726164068931,1.3417,135.29,135.27,11.36]
[1726164069520,1.3209,135.3,135.27,11.36]
[1726164069832,4.6487,135.31,135.27,11.36]
[1726164070018,1.3231,135.31,135.29,11.36]
[1726164071029,3.3253,135.32,135.3,11.36]
[1726164071424,15.4576,135.34,135.29,11.36]
[1726164072024,4.0976,135.34,135.3,11.36]
[1726164072535,15.4576,135.34,135.24,1.3505]
[1726164072734,15.4576,135.34,135.29,11.36]
[1726164073540,3.3254,135.32,135.29,11.36]
[1726164074027,3.3252,135.33,135.31,11.36]
[1726164074831,6.091,135.34,135.32,11.36]
[1726164075226,2.7662,135.34,135.32,11.36]
[1726164075429,1.4342,135.34,135.32,11.36]
[1726164075641,1.4342,135.34,135.31,11.36]
[1726164076041,3.325,135.33,135.31,11.36]
[1726164076332,1.4342,135.34,135.32,11.36]
[1726164078037,4.759,135.34,135.32,11.36]
[1726164085538,4.759,135.34,135.24,1.3505]
[1726164085539,1.3438,135.36,135.33,11.36]
[1726164086543,1.3438,135.36,135.33,14.6849]
[1726164086544,4.6682,135.36,135.33,14.6849]
[1726164088231,1.3438,135.36,135.33,11.36]
[1726164088849,3.3247,135.35,135.33,11.36]
[1726164089042,1.3438,135.36,135.33,11.36]
[1726164089441,4.6683,135.36,135.33,14.6849]
[1726164090042,3.3245,135.35,135.33,14.6849]
[1726164092348,4.6682,135.36,135.33,14.6849]
[1726164096162,1.386,135.37,135.34,11.36]
[1726164096659,3.3243,135.36,135.34,11.36]
[1726164096869,1.386,135.37,135.34,11.36]
[1726164097254,4.7102,135.37,135.34,14.6846]
[1726164097456,4.7102,135.37,135.34,11.36]
[1726164097662,1.386,135.37,135.34,11.36]
[1726164097854,1.386,135.37,135.28,10.10638237]
[1726164098053,11.36,135.36,135.29,6.31684169]
[1726164098249,12.6909,135.36,135.31,11.36]
[1726164098452,3.3249,135.34,135.31,14.6853]
[1726164098649,3.3249,135.34,135.32,11.36]
[1726164099269,3.325,135.33,135.32,11.36]
[1726164099469,3.325,135.33,135.3,7.01638412]
[1726164099470,3.325,135.33,135.31,11.36]
[1726164100766,3.3248,135.34,135.31,14.6855]
[1726164104172,3.3248,135.34,135.32,11.36]
[1726164105561,3.3248,135.34,135.31,3.3255]
[1726164105970,3.3248,135.34,135.31,14.6855]
[1726164108671,3.3248,135.34,135.33,11.36]
[1726164111984,3.3248,135.34,135.32,11.36]
[1726164116379,3.3246,135.35,135.33,11.36]
[1726164120388,4.6553,135.36,135.33,14.685]
[1726164121279,3.3245,135.35,135.33,14.685]
[1726164121785,3.3244,135.36,135.34,11.36]
[1726164122087,2.7314,135.41,135.35,11.36]
[1726164122282,11.36,135.4,135.35,11.36]
[1726164122486,3.3242,135.37,135.35,11.36]
[1726164123077,3.3243,135.36,135.35,11.36]
[1726164123786,3.3243,135.36,135.34,11.36]
[1726164124393,11.36,135.36,135.27,166.90065418]
[1726164124690,11.36,135.35,135.31,11.36]
[1726164125787,3.3248,135.34,135.31,11.36]
[1726164126989,3.3252,135.33,135.3,3.3256]
[1726164127196,2.7314,135.41,135.27,166.90065418]
[1726164127495,11.36,135.34,135.29,11.36]
[1726164127883,11.36,135.32,135.28,14.6861]
[1726164128283,3.3253,135.32,135.29,11.36]